fUSD/lending_fUSD_20260127
["ID","MTS","AMOUNT","RATE_DAILY","PERIOD"]
[403716980,1769503842849,-6570.0,0.00024505,2]
[403716981,1769503842858,-150.0,0.00024505,2]
[403716982,1769503842868,-200.0,0.00024505,2]
[403716983,1769503842877,-171.154,0.00024505,2]
[403716984,1769503842887,-150.16,0.00024505,2]
[403716985,1769503842897,-4831.0,0.00024505,2]
[403716986,1769503842908,-272.463,0.00024505,2]
[403716987,1769503842920,-567.0,0.00024505,2]
[403716988,1769503842930,-1102.0,0.00024548,2]
[403716989,1769503842939,-854.2589148,0.00024615,2]
[403716990,1769503842950,-150.0,0.00024658,2]
[403716991,1769503842959,-334.5472959,0.00024888,2]
[403716992,1769503842969,-300.0,0.00024899,10]
[403716993,1769503842978,-455.11,0.000249,2]
[403716994,1769503842987,-151.0,0.000249,7]
[403716995,1769503842997,-151.0,0.000249,7]
[403716996,1769503843006,-151.0,0.000249,7]
[403716997,1769503843015,-398698.20206395,0.000249,3]
[403717001,1769503844666,-250.928,0.00024505,2]
[403717002,1769503844676,-3163.88365613,0.000249,3]
[403717012,1769503845829,-125043.96361812,0.000249,3]
[403717013,1769503845882,-4810.94623583,0.000249,3]
[403717163,1769504536921,494.09,0.00019178,30]
[403717256,1769505031861,-250.0,0.00016325,2]
[403717257,1769505031871,-194.17406133,0.0001633,2]
[403717258,1769505031880,-300.0,0.0001633,2]
[403717259,1769505031890,-151.0,0.00016567,2]
[403717260,1769505031899,-300.0,0.00016762,2]
[403717261,1769505031909,-300.0,0.00016762,2]
[403717262,1769505031919,-300.0,0.00016762,2]
[403717263,1769505031929,-300.0,0.00016999,2]
[403717264,1769505031939,-1200.0,0.00016999,2]
[403717265,1769505031948,-300.0,0.00016999,2]
[403717266,1769505031958,-250.0,0.00017,2]
[403717267,1769505031967,-500.0,0.00017,2]
[403717268,1769505031978,-500.0,0.00017,2]
[403717269,1769505031987,-500.0,0.00017,2]
[403717270,1769505031997,-150.00416163,0.00017149,2]
[403717271,1769505032007,-481.90856522,0.00017684,2]
[403717272,1769505032017,-847.1,0.00017819,2]
[403717273,1769505032027,-990.5,0.00017894,2]
[403717274,1769505032036,-250.0,0.00017931,2]
[403717275,1769505032046,-250.0,0.00017958,2]
[403717276,1769505032055,-5000.0,0.00017958,2]
[403717277,1769505032065,-193.0,0.00017958,2]
[403717278,1769505032074,-300.0,0.00017958,2]
[403717279,1769505032084,-300.0,0.00017998,2]
[403717280,1769505032093,-150.99,0.00017998,2]
[403717281,1769505032104,-492.70230764,0.00018,2]
[403717286,1769505032188,-10.29769236,0.00018,2]
[403717288,1769505032198,-863.70230764,0.00018356,2]
[403717291,1769505032209,-974.0,0.00018356,2]
[403717293,1769505032221,-569.1924479,0.00018356,2]
[403717301,1769505032286,-2113.79524446,0.00018356,2]
[403717303,1769505032295,-500.0,0.00018435,2]
[403717305,1769505032304,-500.0,0.00018435,2]
[403717307,1769505032313,-500.0,0.00018435,2]
[403717309,1769505032322,-500.0,0.00018435,2]
[403717311,1769505032330,-500.0,0.00018435,2]
[403717313,1769505032339,-500.0,0.00018435,2]
[403717315,1769505032349,-500.0,0.00018435,2]
[403717317,1769505032358,-150.0,0.00018435,2]
[403717319,1769505032367,-500.0,0.00018435,2]
[403717321,1769505032376,-150.0,0.00018435,2]
[403717323,1769505032386,-150.00416163,0.00018459,4]
[403717325,1769505032395,-500.0,0.0001849,2]
[403717327,1769505032404,-500.0,0.0001849,2]
[403717328,1769505032416,-500.0,0.0001849,2]
[403717331,1769505032427,-500.0,0.0001849,2]
[403717333,1769505032436,-500.0,0.0001849,2]
[403717335,1769505032445,-128.26751797,0.0001849,2]
[403717337,1769505032457,-371.73248203,0.0001849,2]
[403717339,1769505032466,-500.0,0.0001849,2]
[403717341,1769505032475,-150.0,0.0001849,2]
[403717343,1769505032484,-500.0,0.0001849,2]
[403717345,1769505032493,-500.0,0.00018545,2]
[403717347,1769505032502,-500.0,0.00018545,2]
[403717348,1769505032511,-500.0,0.00018545,2]
[403717350,1769505032520,-498.78091583,0.00018545,2]
[403717352,1769505032529,-500.0,0.00018545,2]
[403717354,1769505032539,-500.0,0.00018545,2]
[403717356,1769505032548,-500.0,0.00018545,2]
[403717358,1769505032558,-150.0,0.00018545,2]
[403717360,1769505032567,-350.0,0.00018545,2]
[403717362,1769505032576,-251.0,0.00018546,2]
[403717364,1769505032585,-500.0,0.00018599,2]
[403717366,1769505032594,-500.0,0.00018599,2]
[403717368,1769505032604,-500.0,0.00018599,2]
[403717370,1769505032614,-79.79891898,0.00018599,2]
[403717373,1769505032625,-420.20108102,0.00018599,2]
[403717375,1769505032634,-242.75891898,0.00018599,2]
[403717377,1769505032646,-257.24108102,0.00018599,2]
[403717379,1769505032655,-207.52344795,0.00018599,2]
[403717381,1769505032664,-96.11217049,0.00018599,2]
[403717428,1769505038021,-53.88782951,0.00018599,2]
[403717429,1769505038031,-152.61,0.00018617,2]
[403717430,1769505038040,-500.0,0.00018643,2]
[403717431,1769505038050,-500.0,0.00018643,2]
[403717432,1769505038060,-500.0,0.00018643,2]
[403717433,1769505038069,-265.23904038,0.00018643,2]
[403717434,1769505038079,-500.0,0.00018643,2]
[403717435,1769505038089,-500.0,0.00018643,2]
[403717436,1769505038099,-318.30506421,0.00018643,2]
[403717437,1769505038109,-151.0,0.00018643,2]
[403717438,1769505038119,-151.0,0.00018643,2]
[403717439,1769505038129,-151.0,0.00018643,2]
[403717440,1769505038139,-151.0,0.00018643,2]
[403717441,1769505038149,-151.0,0.00018643,2]
[403717442,1769505038158,-151.0,0.00018643,2]
[403717443,1769505038167,-151.0,0.00018643,2]
[403717444,1769505038177,-151.0,0.00018643,2]
[403717445,1769505038187,-151.0,0.00018643,2]
[403717446,1769505038197,-151.0,0.00018643,2]
[403717448,1769505038207,-151.0,0.00018643,2]
[403717450,1769505038216,-151.0,0.00018643,2]
[403717452,1769505038226,-151.0,0.00018643,2]
[403717454,1769505038235,-152.61,0.00018648,2]
[403717455,1769505038244,-305.48780142,0.00018654,2]
[403717457,1769505038253,-224.0,0.00018654,2]
[403717459,1769505038263,-1680.0,0.00018659,2]
[403717461,1769505038273,-503.0,0.00018667,2]
[403717463,1769505038283,-152.61,0.0001868,2]
[403717465,1769505038292,-152.61,0.00018711,2]
[403717467,1769505038301,-152.61,0.00018742,2]
[403717469,1769505038310,-152.61,0.00018773,2]
[403717471,1769505038320,-152.61,0.00018804,2]
[403717473,1769505038329,-152.61,0.00018835,2]
[403717475,1769505038339,-152.61,0.00018866,2]
[403717477,1769505038349,-152.61,0.00018897,2]
[403717479,1769505038358,-162.0,0.000189,3]
[403717481,1769505038367,-610.10230658,0.00018922,2]
[403717483,1769505038379,-1659.99649129,0.00018922,2]
[403717485,1769505038390,-1075.34924468,0.00018922,2]
[403717487,1769505038399,-152.61,0.00018928,2]
[403717489,1769505038409,-152.61,0.00018959,2]
[403717491,1769505038418,-200.0,0.00018989,2]
[403717492,1769505038427,-152.61,0.0001899,2]
[403717494,1769505038436,-152.61,0.00019021,2]
[403717496,1769505038447,-1183.20434498,0.00019045,2]
[403717498,1769505038456,-152.61,0.00019052,2]
[403717499,1769505038466,-200.0,0.00019082,2]
[403717500,1769505038476,-152.61,0.00019083,2]
[403717501,1769505038485,-152.61,0.00019114,2]
[403717502,1769505038496,-5738.19030317,0.00019122,2]
[403717503,1769505038508,-426.61846658,0.00019122,2]
[403717504,1769505038582,-713.27716413,0.00019122,2]
[403717505,1769505038614,-5254.80612069,0.00019122,2]
[403717507,1769505040094,-946853.26133167,0.00019122,2]
[403717508,1769505040151,-306.12067466,0.00019122,2]
[403717509,1769505040322,-40707.7259391,0.00019122,2]
[403717510,1769505040332,-152.61,0.00019145,2]
[403717511,1769505040341,-152.61,0.00019176,2]
[403717512,1769505040352,-20128.29,0.00019178,2]
[403717513,1769505040361,-3763.59,0.00019222,2]
[403717514,1769505040370,-500.0,0.00019325,2]
[403717515,1769505040379,-500.0,0.00019325,2]
[403717516,1769505040388,-500.0,0.00019325,2]
[403717517,1769505040398,-500.0,0.00019325,2]
[403717518,1769505040407,-154.37513994,0.00019325,2]
[403717519,1769505040416,-428.0,0.00019325,2]
[403717520,1769505040426,-150.0,0.00019325,2]
[403717521,1769505040435,-151.66,0.0001933,2]
[403717522,1769505040444,-503.0,0.00019333,3]
[403717523,1769505040453,-500.0,0.0001937,2]
[403717524,1769505040462,-500.0,0.0001938,2]
[403717526,1769505040471,-500.0,0.0001938,2]
[403717527,1769505040480,-500.0,0.0001938,2]
[403717528,1769505040489,-500.0,0.0001938,2]
[403717529,1769505040498,-428.0,0.0001938,2]
[403717530,1769505040507,-243.58384155,0.0001938,2]
[403717531,1769505040517,-500.0,0.00019434,2]
[403717532,1769505040526,-500.0,0.00019434,2]
[403717533,1769505040536,-500.0,0.00019434,2]
[403717534,1769505040545,-500.0,0.00019434,2]
[403717535,1769505040555,-155.05968299,0.00019434,2]
[403717536,1769505040566,-500.0,0.00019435,2]
[403717537,1769505040576,-500.0,0.00019435,2]
[403717538,1769505040586,-500.0,0.00019435,2]
[403717539,1769505040598,-500.0,0.00019435,2]
[403717540,1769505040608,-428.0,0.00019435,2]
[403717541,1769505040618,-200.75277759,0.00019489,2]
[403717542,1769505040627,-183.79755602,0.00019489,2]
[403717543,1769505040637,-500.0,0.00019489,2]
[403717544,1769505040647,-198.78328987,0.00019489,2]
[403717545,1769505040657,-504.48474659,0.00019489,2]
[403717546,1769505040665,-428.0,0.00019489,2]
[403717547,1769505040675,-276.48143206,0.000195,2]
[403717548,1769505040683,-1464.19168112,0.000195,2]
[403717549,1769505040694,-2275.3529,0.000195,2]
[403717550,1769505040704,-428.0,0.00019544,2]
[403717551,1769505040714,-151.0,0.00019597,2]
[403717552,1769505040723,-428.0,0.00019599,2]
[403717553,1769505040734,-500.0,0.00019599,2]
[403717554,1769505040747,-500.0,0.00019599,2]
[403717555,1769505040756,-500.0,0.00019599,2]
[403717556,1769505040765,-500.0,0.00019599,2]
[403717558,1769505040774,-500.0,0.00019599,2]
[403717559,1769505040784,-500.0,0.00019599,2]
[403717560,1769505040793,-500.0,0.00019599,2]
[403717561,1769505040802,-500.0,0.00019599,2]
[403717562,1769505040811,-500.0,0.00019599,2]
[403717563,1769505040820,-496.33104576,0.00019599,2]
[403717564,1769505040829,-500.0,0.00019599,2]
[403717565,1769505040838,-500.0,0.00019599,2]
[403717566,1769505040848,-619.30429403,0.00019599,2]
[403717567,1769505040857,-585.0,0.00019599,2]
[403717568,1769505040867,-500.0,0.00019599,2]
[403717569,1769505040876,-500.0,0.00019599,2]
[403717570,1769505040885,-458.27326887,0.00019599,2]
[403717571,1769505040894,-500.0,0.00019599,2]
[403717572,1769505040903,-255.86555844,0.00019599,2]
[403717573,1769505040912,-237.93410259,0.00019599,2]
[403717574,1769505040921,-487.0,0.000196,2]
[403717575,1769505040931,-487.0,0.000196,2]
[403717576,1769505040940,-487.0,0.000196,2]
[403717578,1769505040949,-487.0,0.000196,2]
[403717579,1769505040959,-487.0,0.000196,2]
[403717580,1769505040967,-487.0,0.000196,2]
[403717581,1769505040976,-487.0,0.000196,2]
[403717582,1769505040985,-487.0,0.000196,2]
[403717583,1769505040993,-487.0,0.000196,2]
[403717584,1769505041002,-487.0,0.000196,2]
[403717585,1769505041012,-487.0,0.000196,2]
[403717586,1769505041021,-487.0,0.000196,2]
[403717587,1769505041030,-487.0,0.000196,2]
[403717588,1769505041040,-487.0,0.000196,2]
[403717589,1769505041049,-487.0,0.000196,2]
[403717590,1769505041058,-487.0,0.000196,2]
[403717591,1769505041067,-487.0,0.000196,2]
[403717592,1769505041076,-487.0,0.000196,2]
[403717593,1769505041085,-487.0,0.000196,2]
[403717594,1769505041094,-487.0,0.000196,2]
[403717595,1769505041103,-487.0,0.000196,2]
[403717596,1769505041112,-487.0,0.000196,2]
[403717597,1769505041121,-665.89,0.000196,2]
[403717598,1769505041130,-420.0,0.00019638,2]
[403717599,1769505041139,-428.0,0.00019654,2]
[403717600,1769505041149,-2000.0,0.000197,2]
[403717601,1769505041158,-1000.0,0.00019703,2]
[403717602,1769505041167,-428.0,0.00019709,2]
[403717603,1769505041176,-428.0,0.00019763,2]
[403717604,1769505041185,-847.1,0.00019776,2]
[403717605,1769505041194,-428.0,0.00019818,2]
[403717606,1769505041203,-428.0,0.00019873,2]
[403717607,1769505041212,-428.0,0.00019928,2]
[403717608,1769505041221,-428.0,0.00019983,2]
[403717609,1769505041231,-503.0,0.0002,3]
[403717610,1769505041240,-428.0,0.00020037,2]
[403717611,1769505041249,-428.0,0.00020092,2]
[403717612,1769505041259,-428.0,0.00020147,2]
[403717613,1769505041267,-428.0,0.00020202,2]
[403717614,1769505041277,-428.0,0.00020257,2]
[403717615,1769505041286,-428.0,0.00020311,2]
[403717616,1769505041297,-2831.0,0.00020318,2]
[403717617,1769505041307,-2831.0,0.00020318,2]
[403717618,1769505041318,-428.0,0.00020366,2]
[403717619,1769505041327,-428.0,0.00020421,2]
[403717620,1769505041337,-2831.0,0.00020441,2]
[403717621,1769505041346,-428.0,0.00020476,2]
[403717622,1769505041355,-2351.0,0.00020481,2]
[403717623,1769505041365,-428.0,0.0002053,2]
[403717624,1769505041374,-154.25,0.00020548,2]
[403717625,1769505041383,-500.0,0.00020548,2]
[403717626,1769505041392,-2831.0,0.00020564,2]
[403717627,1769505041404,-440.36703287,0.00020585,2]
[403717628,1769505041414,-355.7430528,0.0002059,2]
[403717629,1769505041424,-500.0,0.00020603,2]
[403717630,1769505041433,-451.25616091,0.00020658,2]
[403717631,1769505041760,-503.0,0.00020667,4]
[403717632,1769505041774,-151.66,0.00020699,2]
[403717633,1769505041783,-2831.0,0.00020704,2]
[403717634,1769505041793,-2831.0,0.00020753,2]
[403717635,1769505041804,-150.0,0.00020775,2]
[403717636,1769505041814,-2831.0,0.00020818,2]
[403717637,1769505041824,-159.98208784,0.00020828,2]
[403717638,1769505041833,-499.46,0.00021,7]
[403717639,1769505041842,-225.23460546,0.00021,2]
[403717640,1769505041851,-150.00416163,0.0002108,12]
[403717641,1769505041860,-503.0,0.00021333,5]
[403717642,1769505041870,-434.0,0.00021427,2]
[403717643,1769505041878,-5800.0,0.00021488,2]
[403717644,1769505041888,-5800.0,0.00021496,2]
[403717645,1769505041898,-5800.0,0.00021505,2]
[403717646,1769505041907,-5800.0,0.00021513,2]
[403717647,1769505041918,-5800.0,0.00021522,2]
[403717648,1769505041928,-5800.0,0.0002153,2]
[403717649,1769505041937,-225.23460546,0.00021723,9]
[403717650,1769505041947,-847.1,0.00021732,2]
[403717651,1769505041957,-2831.0,0.00021778,2]
[403717652,1769505041968,-300.0,0.00021918,6]
[403717653,1769505041977,-5000.0,0.00021918,2]
[403717654,1769505041986,-500.0,0.00021973,2]
[403717655,1769505041996,-500.0,0.00021973,2]
[403717656,1769505042006,-518.07530174,0.00021973,2]
[403717657,1769505042016,-500.0,0.00021973,2]
[403717658,1769505042025,-504.20951303,0.00021973,2]
[403717659,1769505042035,-500.0,0.00021973,2]
[403717660,1769505042045,-500.0,0.00021973,2]
[403717661,1769505042056,-500.0,0.00021973,2]
[403717662,1769505042065,-500.0,0.00021973,2]
[403717663,1769505042075,-500.0,0.00021973,2]
[403717664,1769505042083,-500.0,0.00021973,2]
[403717665,1769505042092,-500.0,0.00021973,2]
[403717666,1769505042101,-500.0,0.00021973,2]
[403717667,1769505042110,-500.0,0.00021973,2]
[403717668,1769505042120,-500.0,0.00021973,2]
[403717669,1769505042129,-500.0,0.00021973,2]
[403717670,1769505042139,-500.0,0.00021973,2]
[403717671,1769505042149,-515.88206341,0.00021973,2]
[403717672,1769505042159,-159.98070948,0.00021973,2]
[403717673,1769505042168,-500.0,0.00021973,2]
[403717674,1769505042178,-500.0,0.00021973,2]
[403717675,1769505042187,-500.0,0.00021973,2]
[403717676,1769505042196,-505.86407917,0.00021973,2]
[403717677,1769505042206,-500.0,0.00021973,2]
[403717678,1769505042215,-500.0,0.00021973,2]
[403717679,1769505042226,-500.0,0.00021973,2]
[403717680,1769505042235,-500.0,0.00021973,2]
[403717681,1769505042244,-500.0,0.00021973,2]
[403717682,1769505042253,-500.0,0.00021973,2]
[403717683,1769505042263,-500.0,0.00021973,2]
[403717684,1769505042272,-500.0,0.00021973,2]
[403717685,1769505042281,-500.0,0.00021973,2]
[403717686,1769505042291,-1718.86,0.00022,7]
[403717687,1769505042300,-503.0,0.00022,5]
[403717688,1769505042310,-1464.19168103,0.00022044,2]
[403717689,1769505042320,-1000.0,0.00022166,2]
[403717690,1769505042329,-150.00416163,0.0002239,17]
[403717691,1769505042338,-225.23460546,0.00022446,17]
[403717692,1769505042348,-300.0,0.00022466,6]
[403717693,1769505042358,-529.0,0.00022481,2]
[403717694,1769505042368,-1000.0,0.00022521,2]
[403717695,1769505042378,-503.0,0.00022667,6]
[403717696,1769505042388,-168.0,0.00023022,2]
[403717697,1769505042399,-219.0,0.00023032,2]
[403717698,1769505042409,-219.0,0.00023081,2]
[403717699,1769505042418,-219.0,0.00023122,2]
[403717700,1769505042427,-168.0,0.00023122,2]
[403717701,1769505042437,-219.0,0.0002314,2]
[403717702,1769505042446,-225.23460546,0.00023169,25]
[403717703,1769505042455,-168.0,0.00023194,2]
[403717704,1769505042464,-2831.0,0.00023229,3]
[403717705,1769505042475,-219.0,0.00023268,2]
[403717706,1769505042485,-219.0,0.00023275,2]
[403717707,1769505042495,-219.0,0.00023282,2]
[403717708,1769505042505,-300.0,0.00023288,6]
[403717709,1769505042514,-300.0,0.00023288,6]
[403717710,1769505042524,-503.0,0.00023333,6]
[403717711,1769505042535,-2000.0,0.000234,2]
[403717712,1769505042544,-276.48143204,0.0002346,2]
[403717713,1769505042555,-219.0,0.00023476,2]
[403717714,1769505042564,-245.37,0.00023543,2]
[403717715,1769505042574,-219.0,0.00023543,2]
[403717716,1769505042583,-3240.0,0.00023669,2]
[403717717,1769505042592,-847.1,0.00023689,2]
[403717718,1769505042601,-150.00416163,0.00023701,21]
[403717719,1769505042611,-225.23460546,0.00023893,32]
[403717720,1769505042620,-219.0,0.00023999,2]
[403717721,1769505042630,-503.0,0.00024,7]
[403717722,1769505042639,-168.0,0.00024029,2]
[403717723,1769505042650,-500.0,0.00024055,2]
[403717724,1769505042659,-168.0,0.00024058,2]
[403717725,1769505042668,-383.0,0.00024133,2]
[403717726,1769505042678,-490.5,0.00024153,10]
[403717727,1769505042687,-387.0,0.0002417,2]
[403717728,1769505042700,-168.0,0.00024208,2]
[403717729,1769505042709,-494.09,0.00024225,30]
[403717730,1769505042719,-383.0,0.00024238,2]
[403717731,1769505042728,-219.0,0.0002425,2]
[403717732,1769505042737,-162.0,0.000243,7]
[403717733,1769505042747,-383.0,0.00024357,2]
[403717734,1769505042757,-1025.96108638,0.00024402,5]
[403717736,1769505042766,-1008.64323034,0.00024402,5]
[403717737,1769505042775,-1126.09534655,0.00024402,5]
[403717738,1769505042784,-1043.12547073,0.00024402,5]
[403717739,1769505042793,-1134.17297589,0.00024402,5]
[403717740,1769505042802,-1006.42109763,0.00024402,5]
[403717741,1769505042811,-1068.69827494,0.00024402,5]
[403717742,1769505042820,-1079.0599425,0.00024402,5]
[403717743,1769505042830,-1055.94099419,0.00024402,5]
[403717744,1769505042839,-1124.11247688,0.00024402,5]
[403717745,1769505042848,-1053.3617609,0.00024402,5]
[403717746,1769505042857,-1045.79185765,0.00024402,5]
[403717747,1769505042867,-1104.50819243,0.00024402,5]
[403717748,1769505042876,-1093.38082878,0.00024402,5]
[403717749,1769505042885,-1016.61030926,0.00024402,5]
[403717750,1769505042894,-1146.66078287,0.00024402,5]
[403717751,1769505042904,-1081.28435154,0.00024402,5]
[403717752,1769505042913,-1036.0247841,0.00024402,5]
[403717753,1769505042922,-1045.57902534,0.00024402,5]
[403717754,1769505042931,-1089.98964859,0.00024402,5]
[403717755,1769505042941,-1100.36966986,0.00024402,5]
[403717756,1769505042951,-1091.38138504,0.00024402,5]
[403717757,1769505042960,-1037.84087853,0.00024402,5]
[403717758,1769505042970,-1012.83087855,0.00024402,5]
[403717759,1769505042980,-1111.36768005,0.00024402,5]
[403717760,1769505042989,-1004.04028155,0.00024402,5]
[403717761,1769505042999,-1135.63577102,0.00024402,5]
[403717762,1769505043010,-1004.40058701,0.00024402,5]
[403717763,1769505043019,-1101.98901054,0.00024402,5]
[403717764,1769505043028,-1103.27943604,0.00024402,5]
[403717765,1769505043037,-1126.61881244,0.00024402,5]
[403717766,1769505043047,-1074.27886469,0.00024402,5]
[403717767,1769505043056,-1556.46039912,0.00024402,5]
[403717768,1769505043066,-529.78975628,0.00024489,7]
[403717769,1769505043075,-219.0,0.00024496,2]
[403717770,1769505043085,-168.0,0.00024502,2]
[403717771,1769505043094,-219.0,0.00024561,2]
[403717772,1769505043103,-1464.19168103,0.00024589,2]
[403717773,1769505043112,-194.72792766,0.00024612,2]
[403717774,1769505043121,-151.0,0.00024612,2]
[403717775,1769505043131,-322.6107,0.00024612,2]
[403717776,1769505043140,-250.0,0.00024612,2]
[403717777,1769505043150,-3543.0,0.00024612,2]
[403717778,1769505043159,-160.36187769,0.00024612,2]
[403717779,1769505043169,-250.0,0.00024612,2]
[403717780,1769505043178,-194.72792766,0.00024612,2]
[403717781,1769505043187,-250.0,0.00024612,2]
[403717782,1769505043196,-257.91778498,0.00024612,2]
[403717783,1769505043205,-670.58624095,0.00024612,2]
[403717784,1769505043215,-250.0,0.00024612,2]
[403717785,1769505043224,-194.72792766,0.00024612,2]
[403717786,1769505043234,-151.0,0.00024612,2]
[403717787,1769505043243,-794.38677775,0.00024612,2]
[403717788,1769505043253,-500.0,0.00024612,2]
[403717789,1769505043262,-250.0,0.00024612,2]
[403717790,1769505043271,-500.0,0.00024612,2]
[403717791,1769505043280,-500.0,0.00024612,2]
[403717792,1769505043290,-500.0,0.00024612,2]
[403717793,1769505043300,-1000.0,0.00024612,2]
[403717794,1769505043310,-502.85513123,0.00024612,2]
[403717795,1769505043320,-194.72792766,0.00024612,2]
[403717796,1769505043329,-250.0,0.00024612,2]
[403717797,1769505043338,-1000.0,0.00024612,2]
[403717798,1769505043348,-250.0,0.00024612,2]
[403717799,1769505043359,-221.90167299,0.00024612,2]
[403717800,1769505043368,-250.0,0.00024612,2]
[403717801,1769505043377,-290.39862941,0.00024612,2]
[403717802,1769505043387,-225.23460546,0.00024616,40]
[403717803,1769505043397,-1000.0,0.00024629,2]
[403717804,1769505043406,-300.0,0.00024658,7]
[403717805,1769505043415,-1000.0,0.00024658,2]
[403717806,1769505043424,-150.0,0.00024658,2]
[403717807,1769505043434,-219.0,0.00024665,2]
[403717808,1769505043444,-503.0,0.00024667,8]
[403717809,1769505043455,-201.93286099,0.00024667,2]
[403717810,1769505043465,-168.0,0.00024705,2]
[403717811,1769505043474,-209.40437684,0.00024722,2]
[403717812,1769505043483,-219.0,0.00024724,2]
[403717813,1769505043492,-217.15233878,0.00024777,2]
[403717814,1769505043503,-225.18697532,0.00024832,2]
[403717815,1769505043513,-50243.8672233,0.00024871,2]
[403717816,1769505043523,-15686.8901991,0.00024871,2]
[403717817,1769505043532,-233.51889341,0.00024887,2]
[403717818,1769505043541,-200.0,0.000249,2]
[403717819,1769505043551,-800.0,0.000249,9]
[403717820,1769505043562,-800.0,0.000249,9]
[403717821,1769505043572,-800.0,0.000249,9]
[403717822,1769505043581,-800.0,0.000249,9]
[403717823,1769505043591,-800.0,0.000249,9]
[403717824,1769505043600,-800.0,0.000249,9]
[403717825,1769505043610,-800.0,0.000249,9]
[403717826,1769505043619,-800.0,0.000249,9]
[403717827,1769505043628,-84498.4642333,0.000249,3]
[403717834,1769505045080,-151.0,0.00017079,2]
[403717835,1769505045090,-1183.20434496,0.0002164,2]
[403717836,1769505045100,-2147.83370217,0.000249,3]
[403717837,1769505045112,-1908.95357177,0.000249,3]
[403717841,1769505045239,-1003.34533572,0.000249,3]
[403717842,1769505045293,-521.7277719,0.000249,3]
[403717843,1769505045303,-8432.85403011,0.000249,3]
[403717845,1769505045421,-1108.03258045,0.000249,3]
[403717851,1769505045936,-2453.43859042,0.000249,3]
[403717852,1769505046089,-295.87630681,0.000249,3]
[403718089,1769505949084,167.37,0.00013855,2]
[403718126,1769505995888,1884.4781,0.00021,30]
[403718136,1769506051684,1962.25765577,0.00021,30]
[403718137,1769506064102,4431.17034284,0.00013,2]
[403718139,1769506098203,847.13971909,0.00015,2]
[403718140,1769506116771,4721.69993807,0.00015,2]
[403718141,1769506116794,10000.01,0.00015,2]
[403718142,1769506116816,1387.87589965,0.00015,2]
[403718143,1769506117532,-289.95,0.00016,4]
[403718158,1769506232003,-300.0,0.00015999,2]
[403718159,1769506232059,-270.3,0.00015999,2]
[403718160,1769506232071,-929.7,0.00015999,2]
[403718161,1769506232081,-195.0,0.00016,2]
[403718162,1769506232090,-362.19999996,0.00016,4]
[403718163,1769506232111,-41427.98863794,0.00016,4]
[403718164,1769506232120,-151.0,0.00016127,2]
[403718165,1769506232129,-151.0,0.00016139,2]
[403718166,1769506232138,-150.00247609,0.00016242,2]
[403718167,1769506232147,-250.0,0.00016261,2]
[403718168,1769506232157,-2000.0,0.0001628,10]
[403718169,1769506232167,-500.0,0.00016373,2]
[403718170,1769506232176,-507.68701346,0.00016373,2]
[403718171,1769506232185,-500.0,0.00016373,2]
[403718172,1769506232195,-500.2094616,0.00016444,2]
[403718173,1769506232204,-550.0,0.00016656,2]
[403718174,1769506232213,-17235.85,0.00016657,2]